fUSD/lending_fUSD_20240905
["ID","MTS","AMOUNT","RATE_DAILY","PERIOD"]
[337205116,1725499864776,-500.0,0.00014982,2]
[337205117,1725499864786,-500.0,0.00014982,2]
[337205118,1725499864796,-2557.95,0.00014982,2]
[337205119,1725499864806,-500.0,0.00014982,2]
[337205120,1725499864816,-1335.99,0.00014982,2]
[337205121,1725499864826,-1335.99,0.00014982,2]
[337205122,1725499864836,-500.0,0.00014982,2]
[337205123,1725499864846,-575.4,0.00014982,2]
[337205124,1725499864856,-500.0,0.00014982,2]
[337205125,1725499865067,-500.0,0.00014982,2]
[337205126,1725499865078,-500.0,0.00014982,2]
[337205127,1725499865088,-151.0,0.00014982,2]
[337205128,1725499865098,-151.0,0.00014982,2]
[337205129,1725499865107,-500.0,0.00014982,2]
[337205130,1725499865117,-507.6025722,0.00014982,2]
[337205131,1725499865126,-151.0,0.00014982,2]
[337205132,1725499865136,-500.0,0.00014982,2]
[337205133,1725499865147,-500.0,0.00014982,2]
[337205134,1725499865156,-500.0,0.00014982,2]
[337205135,1725499865166,-500.0,0.00014982,2]
[337205136,1725499865175,-694.89,0.00014982,2]
[337205137,1725499865184,-500.0,0.00014982,2]
[337205138,1725499865194,-500.0,0.00014982,2]
[337205139,1725499865203,-4837.029733,0.00014982,2]
[337205140,1725499865213,-500.0,0.00014982,2]
[337205141,1725499865223,-541.372048,0.00014982,2]
[337205142,1725499865232,-260.457054,0.00014982,2]
[337205143,1725499865242,-756.23,0.00014982,2]
[337205144,1725499865251,-756.23,0.00014982,2]
[337205145,1725499865261,-178.955583,0.00014982,2]
[337205146,1725499865271,-1109.48,0.00014982,2]
[337205147,1725499865281,-1109.48,0.00014982,2]
[337205148,1725499865291,-500.0,0.00014983,2]
[337205149,1725499865300,-500.0,0.00014983,2]
[337205150,1725499865310,-500.0,0.00014983,2]
[337205151,1725499865320,-500.0,0.00014983,2]
[337205152,1725499865330,-246.99299173,0.00014983,2]
[337205153,1725499865339,-520.61135328,0.00014983,2]
[337205154,1725499865349,-500.0,0.00014983,2]
[337205155,1725499865361,-240.74407156,0.00014983,2]
[337205156,1725499865371,-500.0,0.00014983,2]
[337205157,1725499865380,-677.47,0.00014983,2]
[337205158,1725499865390,-500.0,0.00014983,2]
[337205159,1725499865400,-575.93,0.00014983,2]
[337205160,1725499865410,-500.0,0.00014983,2]
[337205161,1725499865420,-572.98,0.00014983,2]
[337205162,1725499865430,-500.0,0.00014983,2]
[337205163,1725499865440,-1191.68,0.00014983,2]
[337205164,1725499865451,-500.0,0.00014983,2]
[337205165,1725499865461,-524.41,0.00014983,2]
[337205166,1725499865471,-533.2,0.00014983,2]
[337205167,1725499865481,-500.0,0.00014983,2]
[337205168,1725499865490,-739.07,0.00014983,2]
[337205169,1725499865500,-540.47,0.00014983,2]
[337205170,1725499865511,-500.0,0.00014983,2]
[337205171,1725499865520,-515.58,0.00014983,2]
[337205172,1725499865530,-748.71,0.00014983,2]
[337205173,1725499865541,-500.0,0.00014983,2]
[337205174,1725499865551,-718.06,0.00014983,2]
[337205175,1725499865561,-1083.4,0.00014983,2]
[337205176,1725499865571,-790.45,0.00014983,2]
[337205177,1725499865581,-682.1,0.00014983,2]
[337205178,1725499865591,-970.24,0.00014983,2]
[337205179,1725499865600,-573.0,0.00014983,2]
[337205180,1725499865610,-983.94,0.00014983,2]
[337205181,1725499865621,-624.47,0.00014983,2]
[337205182,1725499865631,-667.36,0.00014983,2]
[337205183,1725499865641,-596.99,0.00014983,2]
[337205184,1725499865652,-500.0,0.00014983,2]
[337205185,1725499865662,-425.4378754,0.00014983,2]
[337205186,1725499865671,-1086.08,0.00014983,2]
[337205187,1725499865681,-500.0,0.00014983,2]
[337205188,1725499865692,-500.0,0.00014983,2]
[337205189,1725499865702,-3409.91,0.00014983,2]
[337205190,1725499865711,-1033.94,0.00014983,2]
[337205191,1725499865721,-15533.41,0.00014983,2]
[337205192,1725499865731,-500.0,0.00014983,2]
[337205193,1725499865741,-500.0,0.00014983,2]
[337205194,1725499865751,-500.0,0.00014983,2]
[337205195,1725499865760,-4760.98,0.00014983,2]
[337205196,1725499865774,-3587.56,0.00014983,2]
[337205197,1725499865784,-941.98,0.00014983,2]
[337205198,1725499865794,-5884.3,0.00014983,2]
[337205199,1725499865804,-730.51,0.00014983,2]
[337205200,1725499865813,-530.75,0.00014983,2]
[337205201,1725499865824,-8263.51,0.00014983,2]
[337205202,1725499865833,-500.0,0.00014983,2]
[337205203,1725499865843,-749.5,0.00014983,2]
[337205204,1725499865853,-2081.3,0.00014983,2]
[337205205,1725499865863,-533.9,0.00014983,2]
[337205206,1725499865875,-1014.16,0.00014983,2]
[337205207,1725499865885,-500.83,0.00014983,2]
[337205208,1725499865898,-3214.3,0.00014983,2]
[337205209,1725499865907,-500.0,0.00014983,2]
[337205210,1725499865917,-353.52471689,0.00014983,2]
[337205211,1725499865926,-2452.82,0.00014983,2]
[337205212,1725499865935,-500.0,0.00014983,2]
[337205213,1725499865945,-500.34,0.00014983,2]
[337205214,1725499865955,-2912.57,0.00014983,2]
[337205215,1725499865965,-500.0,0.00014983,2]
[337205216,1725499865975,-500.0,0.00014983,2]
[337205217,1725499865985,-2136.38,0.00014983,2]
[337205218,1725499865995,-515.95,0.00014983,2]
[337205219,1725499866004,-1035.91,0.00014983,2]
[337205220,1725499866014,-1035.91,0.00014983,2]
[337205221,1725499866024,-1035.91,0.00014983,2]
[337205222,1725499866034,-1035.91,0.00014983,2]
[337205223,1725499866043,-1036.08643801,0.00014983,2]
[337205224,1725499866053,-1078.74,0.00014983,2]
[337205225,1725499866062,-1635.58,0.00014983,2]
[337205226,1725499866072,-500.0,0.00014983,2]
[337205227,1725499866081,-500.0,0.00014983,2]
[337205228,1725499866091,-500.0,0.00014983,2]
[337205229,1725499866101,-224.99419531,0.00014983,2]
[337205230,1725499866112,-438.10279608,0.00014983,2]
[337205231,1725499866122,-500.0,0.00014983,2]
[337205232,1725499866131,-500.0,0.00014983,2]
[337205233,1725499866142,-500.0,0.00014983,2]
[337205234,1725499866160,-500.0,0.00014983,2]
[337205235,1725499866170,-500.0,0.00014983,2]
[337205236,1725499866179,-500.0,0.00014983,2]
[337205237,1725499866189,-500.0,0.00014983,2]
[337205238,1725499866198,-500.0,0.00014983,2]
[337205239,1725499866208,-502.43,0.00014983,2]
[337205240,1725499866218,-502.43,0.00014983,2]
[337205241,1725499866227,-566.68,0.00014983,2]
[337205242,1725499866237,-566.68,0.00014983,2]
[337205243,1725499866247,-500.0,0.00014983,2]
[337205244,1725499866257,-500.0,0.00014983,2]
[337205245,1725499866266,-523.34,0.00014983,2]
[337205246,1725499866275,-523.34,0.00014983,2]
[337205247,1725499866285,-500.0,0.00014983,2]
[337205248,1725499866296,-500.0,0.00014983,2]
[337205249,1725499866306,-500.0,0.00014983,2]
[337205250,1725499866315,-500.0,0.00014983,2]
[337205251,1725499866325,-500.0,0.00014983,2]
[337205252,1725499866335,-500.0,0.00014983,2]
[337205253,1725499866344,-500.0,0.00014983,2]
[337205254,1725499866355,-500.0,0.00014983,2]
[337205255,1725499866370,-500.0,0.00014983,2]
[337205256,1725499866379,-500.0,0.00014983,2]
[337205257,1725499866389,-517.22433188,0.00014983,2]
[337205258,1725499866401,-460.23,0.00014983,2]
[337205259,1725499866411,-500.0,0.00014983,2]
[337205260,1725499866421,-500.0,0.00014983,2]
[337205261,1725499866431,-684.18,0.00014983,2]
[337205262,1725499866441,-684.18,0.00014983,2]
[337205263,1725499866451,-543.2616057,0.00014983,2]
[337205264,1725499866460,-500.0,0.00014983,2]
[337205265,1725499866470,-500.0,0.00014983,2]
[337205266,1725499866480,-500.0,0.00014983,2]
[337205267,1725499866489,-500.0,0.00014983,2]
[337205268,1725499866498,-689.4,0.00014983,2]
[337205269,1725499866508,-689.4,0.00014983,2]
[337205270,1725499866517,-500.0,0.00014983,2]
[337205271,1725499866527,-500.0,0.00014983,2]
[337205272,1725499866536,-500.0,0.00014983,2]
[337205273,1725499866546,-500.0,0.00014983,2]
[337205274,1725499866555,-500.0,0.00014983,2]
[337205275,1725499866565,-500.0,0.00014983,2]
[337205276,1725499866574,-500.0,0.00014983,2]
[337205277,1725499866583,-500.0,0.00014983,2]
[337205278,1725499866593,-408.89078061,0.00014983,2]
[337205279,1725499866602,-500.0,0.00014983,2]
[337205280,1725499866612,-500.0,0.00014983,2]
[337205281,1725499866622,-500.0,0.00014983,2]
[337205282,1725499866631,-500.0,0.00014983,2]
[337205283,1725499866642,-500.0,0.00014983,2]
[337205284,1725499866651,-454.38012583,0.00014983,2]
[337205285,1725499866661,-500.0,0.00014983,2]
[337205286,1725499866670,-573.80699957,0.00014983,2]
[337205287,1725499866680,-500.0,0.00014983,2]
[337205288,1725499866689,-500.0,0.00014983,2]
[337205289,1725499866699,-500.0,0.00014983,2]
[337205290,1725499866708,-500.0,0.00014983,2]
[337205291,1725499866718,-450.36,0.00014983,2]
[337205292,1725499866727,-500.0,0.00014983,2]
[337205293,1725499866737,-500.0,0.00014983,2]
[337205294,1725499866746,-500.0,0.00014983,2]
[337205295,1725499866755,-500.0,0.00014983,2]
[337205296,1725499866765,-500.0,0.00014983,2]
[337205297,1725499866774,-500.0,0.00014983,2]
[337205298,1725499866783,-342.72371262,0.00014983,2]
[337205299,1725499866792,-500.0,0.00014983,2]
[337205300,1725499866801,-500.0,0.00014983,2]
[337205301,1725499866811,-473.69967669,0.00014983,2]
[337205302,1725499866820,-523.43,0.00014983,2]
[337205303,1725499866829,-523.43,0.00014983,2]
[337205304,1725499866839,-1063.87,0.00014983,2]
[337205305,1725499866849,-1063.87,0.00014983,2]
[337205306,1725499866858,-500.0,0.00014983,2]
[337205307,1725499866867,-500.0,0.00014983,2]
[337205308,1725499866876,-500.0,0.00014983,2]
[337205309,1725499866886,-748.34,0.00014983,2]
[337205310,1725499866899,-500.0,0.00014983,2]
[337205311,1725499866913,-500.88602185,0.00014983,2]
[337205312,1725499866923,-748.34,0.00014983,2]
[337205313,1725499866932,-500.0,0.00014983,2]
[337205314,1725499866941,-500.0,0.00014983,2]
[337205315,1725499866951,-680.6,0.00014983,2]
[337205316,1725499866961,-680.6,0.00014983,2]
[337205317,1725499866970,-1068.03,0.00014983,2]
[337205318,1725499866979,-1068.03,0.00014983,2]
[337205319,1725499866989,-1165.14,0.00014983,2]
[337205320,1725499866998,-1165.14,0.00014983,2]
[337205321,1725499867007,-500.0,0.00014983,2]
[337205322,1725499867016,-327.75063235,0.00014983,2]
[337205323,1725499867026,-500.0,0.00014983,2]
[337205324,1725499867035,-490.32121489,0.00014983,2]
[337205325,1725499867043,-500.0,0.00014983,2]
[337205326,1725499867053,-500.0,0.00014983,2]
[337205327,1725499867062,-500.0,0.00014983,2]
[337205328,1725499867072,-500.0,0.00014983,2]
[337205329,1725499867081,-626.51,0.00014983,2]
[337205330,1725499867090,-626.51,0.00014983,2]
[337205331,1725499867100,-500.0,0.00014983,2]
[337205332,1725499867109,-266.70829522,0.00014983,2]
[337205333,1725499867118,-500.0,0.00014983,2]
[337205334,1725499867128,-500.0,0.00014983,2]
[337205335,1725499867138,-500.0,0.00014983,2]
[337205336,1725499867154,-500.0,0.00014983,2]
[337205337,1725499867163,-500.0,0.00014983,2]
[337205338,1725499867172,-500.0,0.00014983,2]
[337205339,1725499867182,-500.0,0.00014983,2]
[337205340,1725499867190,-738.86,0.00014983,2]
[337205341,1725499867199,-210.02833057,0.00014983,2]
[337205342,1725499867209,-738.86,0.00014983,2]
[337205343,1725499867219,-500.0,0.00014983,2]
[337205344,1725499867228,-500.0,0.00014983,2]
[337205345,1725499867237,-778.18,0.00014983,2]
[337205346,1725499867246,-778.18,0.00014983,2]
[337205347,1725499867256,-500.0,0.00014983,2]
[337205348,1725499867266,-500.0,0.00014983,2]
[337205349,1725499867277,-500.0,0.00014983,2]
[337205350,1725499867287,-500.0,0.00014983,2]
[337205351,1725499867298,-500.0,0.00014983,2]
[337205352,1725499867307,-500.0,0.00014983,2]
[337205353,1725499867317,-500.0,0.00014983,2]
[337205354,1725499867328,-500.0,0.00014983,2]
[337205355,1725499867338,-500.0,0.00014983,2]
[337205356,1725499867348,-503.2946039,0.00014983,2]
[337205357,1725499867363,-870.19,0.00014983,2]
[337205358,1725499867373,-870.19,0.00014983,2]
[337205359,1725499867383,-1346.71,0.00014983,2]
[337205360,1725499867393,-1346.71,0.00014983,2]
[337205361,1725499867402,-1038.65,0.00014983,2]
[337205362,1725499867411,-1038.65,0.00014983,2]
[337205363,1725499867421,-500.0,0.00014983,2]
[337205364,1725499867430,-500.0,0.00014983,2]
[337205365,1725499867440,-500.0,0.00014983,2]
[337205366,1725499867450,-500.0,0.00014983,2]
[337205367,1725499867459,-500.0,0.00014983,2]
[337205368,1725499867470,-500.0,0.00014983,2]
[337205369,1725499867479,-500.0,0.00014983,2]
[337205370,1725499867488,-500.0,0.00014983,2]
[337205371,1725499867498,-500.0,0.00014983,2]
[337205372,1725499867507,-543.64,0.00014983,2]
[337205373,1725499867516,-543.64,0.00014983,2]
[337205374,1725499867529,-500.0,0.00014983,2]
[337205375,1725499867538,-500.0,0.00014983,2]
[337205376,1725499867620,-500.0,0.00014983,2]
[337205377,1725499867629,-500.0,0.00014983,2]
[337205378,1725499867639,-1725.32,0.00014983,2]
[337205379,1725499867651,-1725.32,0.00014983,2]
[337205380,1725499867662,-535.96,0.00014983,2]
[337205381,1725499867671,-535.96,0.00014983,2]
[337205382,1725499867682,-1180.11,0.00014983,2]
[337205383,1725499867691,-1180.11,0.00014983,2]
[337205384,1725499867700,-500.0,0.00014983,2]
[337205385,1725499867709,-500.0,0.00014983,2]
[337205386,1725499867720,-500.0,0.00014983,2]
[337205387,1725499867729,-500.0,0.00014983,2]
[337205388,1725499867739,-500.0,0.00014983,2]
[337205389,1725499867748,-500.0,0.00014983,2]
[337205390,1725499867757,-665.85,0.00014983,2]
[337205391,1725499867766,-665.85,0.00014983,2]
[337205392,1725499867775,-1249.95,0.00014983,2]
[337205393,1725499867786,-1249.95,0.00014983,2]
[337205394,1725499867795,-500.0,0.00014983,2]
[337205395,1725499867806,-500.0,0.00014983,2]
[337205396,1725499867816,-500.0,0.00014983,2]
[337205397,1725499867826,-500.0,0.00014983,2]
[337205398,1725499867835,-885.56,0.00014983,2]
[337205399,1725499867846,-885.56,0.00014983,2]
[337205400,1725499867855,-1243.05,0.00014983,2]
[337205401,1725499867864,-1243.05,0.00014983,2]
[337205402,1725499867873,-500.0,0.00014983,2]
[337205403,1725499867882,-500.0,0.00014983,2]
[337205404,1725499867892,-500.0,0.00014983,2]
[337205405,1725499867901,-500.0,0.00014983,2]
[337205406,1725499867910,-500.0,0.00014983,2]
[337205407,1725499867920,-500.0,0.00014983,2]
[337205408,1725499867929,-500.0,0.00014983,2]
[337205409,1725499867938,-500.0,0.00014983,2]
[337205410,1725499867947,-500.0,0.00014983,2]
[337205411,1725499867956,-500.0,0.00014983,2]
[337205412,1725499867964,-500.0,0.00014983,2]
[337205413,1725499867974,-500.0,0.00014983,2]
[337205414,1725499867982,-500.0,0.00014983,2]
[337205415,1725499867991,-500.0,0.00014983,2]
[337205416,1725499868000,-500.0,0.00014983,2]
[337205417,1725499868009,-500.0,0.00014983,2]
[337205418,1725499868018,-500.0,0.00014983,2]
[337205419,1725499868027,-500.0,0.00014983,2]
[337205420,1725499868035,-500.0,0.00014983,2]
[337205421,1725499868044,-500.0,0.00014983,2]
[337205422,1725499868053,-500.0,0.00014983,2]
[337205423,1725499868062,-500.0,0.00014983,2]
[337205424,1725499868071,-562.88965213,0.00014983,2]
[337205425,1725499868080,-691.61,0.00014983,2]
[337205426,1725499868089,-691.61,0.00014983,2]
[337205427,1725499868098,-618.57,0.00014983,2]
[337205428,1725499868107,-618.57,0.00014983,2]
[337205429,1725499868115,-500.0,0.00014983,2]
[337205430,1725499868124,-500.0,0.00014983,2]
[337205431,1725499868133,-522.33,0.00014983,2]
[337205432,1725499868144,-500.0,0.00014983,2]
[337205433,1725499868153,-500.0,0.00014983,2]
[337205434,1725499868163,-500.0,0.00014983,2]
[337205435,1725499868172,-525.62,0.00014983,2]
[337205436,1725499868180,-500.0,0.00014983,2]
[337205437,1725499868189,-500.0,0.00014983,2]
[337205438,1725499868199,-500.0,0.00014983,2]
[337205439,1725499868207,-868.1,0.00014983,2]
[337205440,1725499868216,-868.1,0.00014983,2]
[337205441,1725499868226,-500.0,0.00014983,2]
[337205442,1725499868235,-500.0,0.00014983,2]
[337205443,1725499868244,-500.0,0.00014983,2]
[337205444,1725499868254,-500.0,0.00014983,2]
[337205445,1725499868263,-344.62,0.00014983,2]
[337205446,1725499868272,-500.0,0.00014983,2]
[337205447,1725499868281,-698.95,0.00014983,2]
[337205448,1725499868290,-698.95,0.00014983,2]
[337205449,1725499868299,-500.0,0.00014983,2]
[337205450,1725499868308,-500.0,0.00014983,2]
[337205451,1725499868317,-500.0,0.00014983,2]
[337205452,1725499868326,-500.0,0.00014983,2]
[337205453,1725499868335,-592.2,0.00014983,2]
[337205454,1725499868344,-339.42,0.00014983,2]
[337205455,1725499868353,-500.0,0.00014983,2]
[337205456,1725499868369,-1862.57,0.00014983,2]
[337205457,1725499868379,-500.0,0.00014983,2]
[337205458,1725499868390,-500.0,0.00014983,2]
[337205459,1725499868399,-3102.6,0.00014983,2]
[337205460,1725499868409,-500.0,0.00014983,2]
[337205461,1725499868418,-500.0,0.00014983,2]
[337205462,1725499868427,-501.41,0.00014983,2]
[337205463,1725499868437,-500.0,0.00014983,2]
[337205464,1725499868447,-500.0,0.00014983,2]
[337205465,1725499868456,-3249.89,0.00014983,2]
[337205466,1725499868465,-500.0,0.00014983,2]
[337205467,1725499868475,-500.0,0.00014983,2]
[337205468,1725499868486,-1474.41,0.00014983,2]
[337205469,1725499868495,-500.0,0.00014983,2]
[337205470,1725499868505,-500.0,0.00014983,2]
[337205471,1725499868514,-719.24,0.00014983,2]
[337205472,1725499868524,-500.0,0.00014983,2]
[337205473,1725499868534,-500.0,0.00014983,2]
[337205474,1725499868544,-500.0,0.00014983,2]
[337205475,1725499868553,-500.0,0.00014983,2]
[337205476,1725499868562,-500.0,0.00014983,2]
[337205477,1725499868572,-1865.89,0.00014983,2]
[337205478,1725499868582,-500.0,0.00014983,2]
[337205479,1725499868591,-500.0,0.00014983,2]
[337205480,1725499868602,-500.0,0.00014983,2]
[337205481,1725499868613,-500.0,0.00014983,2]
[337205482,1725499868623,-500.0,0.00014983,2]
[337205483,1725499868633,-500.0,0.00014983,2]
[337205484,1725499868645,-500.0,0.00014983,2]
[337205485,1725499868656,-500.0,0.00014983,2]
[337205486,1725499868666,-500.0,0.00014983,2]
[337205487,1725499868676,-1279.21,0.00014983,2]
[337205488,1725499868686,-1279.21,0.00014983,2]
[337205489,1725499868696,-1003.74,0.00014983,2]
[337205490,1725499868705,-500.0,0.00014983,2]
[337205491,1725499868715,-500.0,0.00014983,2]
[337205492,1725499868724,-303.75590129,0.00014983,2]
[337205493,1725499868734,-754.65,0.00014983,2]
[337205494,1725499868744,-754.65,0.00014983,2]
[337205495,1725499868754,-1176.51,0.00014983,2]
[337205496,1725499868764,-1198.38,0.00014983,2]
[337205497,1725499868773,-151.0,0.00014983,2]
[337205498,1725499868782,-1426.28,0.00014983,2]
[337205499,1725499868791,-1426.28,0.00014983,2]
[337205500,1725499868800,-482.05063153,0.00014983,2]
[337205501,1725499868809,-500.0,0.00014983,2]
[337205502,1725499868818,-500.0,0.00014983,2]
[337205503,1725499868827,-500.0,0.00014983,2]
[337205504,1725499868836,-500.0,0.00014983,2]
[337205505,1725499868845,-151.0,0.00014983,2]
[337205506,1725499868855,-580.56,0.00014983,2]
[337205507,1725499868864,-705.71,0.00014983,2]
[337205508,1725499868873,-645.46,0.00014983,2]
[337205509,1725499868882,-705.71,0.00014983,2]
[337205510,1725499868892,-645.46,0.00014983,2]
[337205511,1725499868901,-151.0,0.00014983,2]
[337205512,1725499868911,-151.0,0.00014983,2]
[337205513,1725499868920,-2593.36,0.00014983,2]
[337205514,1725499868929,-2593.36,0.00014983,2]
[337205515,1725499868937,-151.0,0.00014983,2]
[337205516,1725499868946,-5343.63,0.00014983,2]
[337205517,1725499868955,-5343.63,0.00014983,2]
[337205518,1725499868964,-1300.35,0.00014983,2]
[337205519,1725499868973,-1300.35,0.00014983,2]
[337205520,1725499868982,-151.0,0.00014983,2]
[337205521,1725499868991,-2892.13,0.00014983,2]
[337205522,1725499869000,-2892.13,0.00014983,2]
[337205523,1725499869009,-151.0,0.00014983,2]
[337205524,1725499869018,-151.0,0.00014983,2]
[337205525,1725499869026,-500.0,0.00014983,2]
[337205526,1725499869035,-500.0,0.00014983,2]
[337205527,1725499869044,-151.0,0.00014983,2]
[337205528,1725499869053,-151.0,0.00014983,2]
[337205529,1725499869063,-151.0,0.00014983,2]
[337205530,1725499869072,-151.265618,0.00014983,2]
[337205531,1725499869081,-2965.78,0.00014983,2]
[337205532,1725499869090,-151.0,0.00014983,2]
[337205533,1725499869099,-775.12,0.00014983,2]
[337205534,1725499869108,-5288.71,0.00014983,2]
[337205535,1725499869117,-2018.99,0.00014983,2]
[337205536,1725499869126,-500.0,0.00014983,2]
[337205537,1725499869135,-500.0,0.00014983,2]
[337205538,1725499869144,-529.0,0.00014983,2]
[337205539,1725499869153,-500.0,0.00014983,2]
[337205540,1725499869162,-500.0,0.00014983,2]
[337205541,1725499869172,-500.0,0.00014983,2]
[337205542,1725499869181,-500.0,0.00014983,2]
[337205543,1725499869190,-500.0,0.00014983,2]
[337205544,1725499869199,-151.0,0.00014983,2]
[337205545,1725499869208,-789.55,0.00014983,2]
[337205546,1725499869217,-789.55,0.00014983,2]
[337205547,1725499869226,-500.0,0.00014983,2]
[337205548,1725499869235,-1544.76,0.00014983,2]
[337205549,1725499869244,-1544.76,0.00014983,2]
[337205550,1725499869253,-500.0,0.00014983,2]
[337205551,1725499869262,-500.0,0.00014983,2]
[337205552,1725499869272,-962.78,0.00014983,2]
[337205553,1725499869281,-962.78,0.00014983,2]
[337205554,1725499869290,-775.72,0.00014983,2]
[337205555,1725499869298,-775.72,0.00014983,2]
[337205556,1725499869307,-1872.09,0.00014983,2]
[337205557,1725499869316,-1872.09,0.00014983,2]
[337205558,1725499869325,-151.0,0.00014983,2]
[337205559,1725499869334,-151.0,0.00014983,2]
[337205560,1725499869343,-151.0,0.00014983,2]
[337205561,1725499869353,-500.0,0.00014983,2]
[337205562,1725499869366,-500.0,0.00014983,2]
[337205563,1725499869376,-1714.32,0.00014983,2]
[337205564,1725499869385,-1714.32,0.00014983,2]
[337205565,1725499869395,-151.0,0.00014983,2]
[337205566,1725499869404,-500.0,0.00014983,2]
[337205567,1725499869414,-500.0,0.00014983,2]
[337205568,1725499869423,-500.0,0.00014983,2]
[337205569,1725499869432,-500.0,0.00014983,2]
[337205570,1725499869441,-1066.15,0.00014983,2]
[337205571,1725499869451,-1066.15,0.00014983,2]
[337205572,1725499869459,-151.0,0.00014983,2]
[337205573,1725499869469,-500.0,0.00014983,2]
[337205574,1725499869478,-500.0,0.00014983,2]
[337205575,1725499869487,-394.16596883,0.00014983,2]
[337205576,1725499869496,-151.0,0.00014983,2]
[337205577,1725499869506,-869.3,0.00014983,2]
[337205578,1725499869515,-869.3,0.00014983,2]
[337205579,1725499869524,-500.0,0.00014983,2]
[337205580,1725499869533,-500.0,0.00014983,2]
[337205581,1725499869542,-583.37,0.00014983,2]
[337205582,1725499869551,-583.37,0.00014983,2]
[337205583,1725499869561,-151.0,0.00014983,2]
[337205584,1725499869570,-151.0,0.00014983,2]
[337205585,1725499869579,-151.0,0.00014983,2]
[337205586,1725499869588,-151.0,0.00014983,2]
[337205587,1725499869597,-151.0,0.00014983,2]
[337205588,1725499869606,-151.0,0.00014983,2]
[337205589,1725499869615,-151.0,0.00014983,2]
[337205590,1725499869624,-151.0,0.00014983,2]
[337205591,1725499869634,-151.0,0.00014983,2]
[337205592,1725499869643,-151.0,0.00014983,2]
[337205593,1725499869652,-396.090029,0.00014983,2]
[337205594,1725499869661,-396.090029,0.00014983,2]
[337205595,1725499869671,-396.090029,0.00014983,2]
[337205596,1725499869680,-396.090029,0.00014983,2]
[337205597,1725499869689,-542.27,0.00014983,2]
[337205598,1725499869699,-542.27,0.00014983,2]
[337205599,1725499869708,-151.0,0.00014983,2]
[337205600,1725499869717,-151.0,0.00014983,2]
[337205601,1725499869727,-151.0,0.00014983,2]
[337205602,1725499869735,-151.0,0.00014983,2]
[337205603,1725499869744,-3102.77,0.00014983,2]
[337205604,1725499869753,-3102.77,0.00014983,2]
[337205605,1725499869762,-151.0,0.00014983,2]
[337205606,1725499869772,-151.0,0.00014983,2]
[337205607,1725499869781,-9931.35,0.00014983,2]
[337205608,1725499869790,-9931.35,0.00014983,2]
[337205609,1725499869799,-500.0,0.00014983,2]
[337205610,1725499869807,-220.437211,0.00014983,2]
[337205611,1725499869817,-500.0,0.00014983,2]
[337205612,1725499869825,-220.437211,0.00014983,2]
[337205613,1725499869835,-500.0,0.00014983,2]
[337205614,1725499869844,-514.72323366,0.00014983,2]
[337205615,1725499869853,-500.0,0.00014983,2]